Cogmind - Beta 15 @@@ ROGUE MODE // 2025.09.02 @ 14:54:40 Player: laeb2 Result: Destroyed by B7-86B(M) with Barrage Gun Performance ------------- Evolutions (3) 1500 Regions Visited (10) 2000 Robots Destroyed (77) 385 Value Destroyed (1918) 1918 Prototype IDs (38) 760 Alien Tech Used (0) 0 Bonus (793) 793 TOTAL SCORE: 7356 Bonus ------- Follower Combat Kills 193 Aligned with FarCom 300 Met Imprinter 300 Cogmind --------- Core Integrity 0/700 Matter 290/300 Energy 24/100 System Corruption 26% Temperature Cool (0) Movement Walking (280) Ox2 Location -6/Zion Parts ------- > --- POWER (1) -------- (None) > --- PROPULSION (4) --- Makeshift Leg > --- UTILITY (5) ------ High-capacity Storage Unit > --- WEAPON (3) ------- Precision Beam Rifle > --- INVENTORY (20) --- Reinforced Ion Engine Reinforced Deuterium Engine Hacking Drone Bay Heavy Riot Gun Heavy Ion Cannon Dirty Bomb Trap Dirty Bomb Trap Dirty Bomb Trap Fire Trap Fire Trap Fire Trap Fire Trap Peak State ------------ > --- POWER ------------ Light Deuterium Engine > --- PROPULSION ------- Light Treads Improved Treads Improved Medium Treads Improved Titanium Leg > --- UTILITY ---------- High-capacity Storage Unit Spectral Analyzer Experimental Targeting Computer Experimental Target Analyzer Experimental Armor Integrity Analyzer > --- WEAPON ----------- Improved Assault Rifle Improved Assault Rifle Longsword +1 > --- INVENTORY -------- Reinforced Ion Engine Reinforced Deuterium Engine High-capacity Matter Pod Makeshift Light Armor Plating Hacking Drone Bay Heavy Riot Gun Precision Beam Rifle Precision Beam Rifle Heavy Ion Cannon Heavy Ion Cannon Improved Assault Rifle Barrage Gun Grenade Launcher Dirty Bomb Trap Dirty Bomb Trap Dirty Bomb Trap Fire Trap Fire Trap Fire Trap Fire Trap [Rating: 69] Favorites ----------- Power Deuterium Engine Engine Deuterium Engine Power Core Light Nuclear Core Propulsion Light Treads Treads Light Treads Leg Improved Titanium Leg Wheel Wheel Utility High-capacity Storage Unit Device Seismic Detector Storage High-capacity Storage Unit Processor Experimental Armor Integrity Analyzer Protection Hardened Light Armor Plating Weapon Improved Assault Rifle Energy Gun Spread Laser Energy Cannon Heavy Ion Cannon Ballistic Gun Improved Assault Rifle Launcher Grenade Launcher Impact Weapon Hammer Slashing Weapon Longsword +1 Build | -11 -10 -10 -9 -9 -9 -8 -8 -7 -7 -6 ------- Run | Yrd Mat Min Mat Min Exi Min Mat Fac Low Zio Slots Evolved 6 | . . . 2 . . . 2 2 . . Power . | . . . . . . . . . . . Propulsion 2 | . . . 1 . . . 1 . . . Utility 3 | . . . 1 . . . . 2 . . Weapon 1 | . . . . . . . 1 . . . Parts Attached 68 | 10 7 . 6 4 . 3 14 . 11 13 Power 5 | 1 1 . 1 . . 2 . . . . Engine 4 | 1 . . 1 . . 2 . . . . Core 1 | . 1 . . . . . . . . . Reactor . | . . . . . . . . . . . Propulsion 21 | 4 1 . 3 . . 1 5 . 5 2 Treads 17 | 2 1 . 3 . . 1 5 . 4 1 Leg 2 | . . . . . . . . . 1 1 Wheel 2 | 2 . . . . . . . . . . Hover . | . . . . . . . . . . . Flight . | . . . . . . . . . . . Utility 24 | 2 3 . 1 3 . . 2 . 4 9 Device 5 | 1 . . . 1 . . 1 . 1 1 Storage 4 | 1 1 . 1 . . . . . . 1 Processor 6 | . . . . . . . . . . 6 Hackware . | . . . . . . . . . . . Protection 9 | . 2 . . 2 . . 1 . 3 1 Artifact . | . . . . . . . . . . . Weapon 18 | 3 2 . 1 1 . . 7 . 2 2 Energy Gun 8 | 2 . . 1 . . . 5 . . . Energy Cannon 1 | . . . . . . . . . . 1 Ballistic Gun 6 | 1 1 . . . . . 1 . 2 1 Ballistic Cannon . | . . . . . . . . . . . Launcher 1 | . . . . 1 . . . . . . Special Weapon . | . . . . . . . . . . . Impact Weapon 1 | . 1 . . . . . . . . . Slashing Weapon 1 | . . . . . . . 1 . . . Piercing Weapon . | . . . . . . . . . . . Special Melee Weapon . | . . . . . . . . . . . Unidentified Prototypes 8 | . 1 . . . . . 2 . . 5 Parts Lost 33 | . . . 1 1 . . . . 14 17 Power 3 | . . . 1 . . . . . 1 1 Propulsion 10 | . . . . . . . . . 5 5 Utility 13 | . . . . 1 . . . . 7 5 Weapon 7 | . . . . . . . . . 1 6 Highest Loss Streak 15 | . . . 1 1 . . . . 14 15 To Critical Strikes 1 | . . . . . . . . . . 1 Average Backups 16 | 3 11 15 18 19 20 20 19 19 13 12 Power 1 | . . . . 1 1 1 1 2 2 2 Propulsion 2 | 2 3 4 3 3 4 4 3 3 . . Utility 6 | 1 5 7 8 8 8 8 7 6 2 1 Weapon 6 | . 2 4 6 7 7 7 7 8 8 8 Tool/Special . | . . . . . . . . . . . Unused Backups 25 | . 8 . 4 . 2 2 2 1 . 6 Power 4 | . . . . . . 2 . . . 2 Propulsion 2 | . 2 . . . . . . . . . Utility 9 | . 5 . 1 . 1 . 1 . . 1 Weapon 10 | . 1 . 3 . 1 . 1 1 . 3 Tool/Special . | . . . . . . . . . . . Average Slot Usage (%) 95 | . 100 100 97 99 100 100 99 91 63 88 Engine 7 | . 8 . 2 11 11 11 9 7 5 6 Core 2 | . 5 14 8 . . . . . . . Treads 30 | . 28 28 33 33 33 33 36 30 22 22 Device 8 | . 12 14 11 7 11 11 7 7 1 1 Storage 10 | . 14 14 11 11 11 11 9 7 7 7 Processor 2 | . . . . . . . . . . 19 Protection 6 | . 1 . 8 14 11 11 10 14 2 . Energy Gun 6 | . . . 5 6 . . 19 23 2 . Ballistic Gun 14 | . 27 28 16 11 11 11 7 . 13 13 Launcher 1 | . . . . 4 11 11 . . . . Slashing Weapon 1 | . . . . . . . . . 5 6 Peak Build Rating 69 | 7 14 13 18 16 15 20 35 34 37 69 Average Rating 23 | 4 11 13 16 15 15 17 26 33 26 53 On Entrance 18 | . 7 13 13 16 15 15 20 35 34 30 Naked Turns . | . . . . . . . . . . . Heaviest Build 71 | 13 37 31 59 61 57 61 66 70 71 58 Greatest Support 85 | 40 40 40 60 60 60 62 85 85 85 73 Greatest Overweight (x) 1 | . . . . 1 . . . . 1 1 Average Overweight (x) . | . . . . . . . . . . . Largest Inventory Capacity 20 | 8 15 15 20 20 20 20 20 20 20 20 Average Capacity 17 | 7 11 15 19 20 20 20 20 20 20 20 Most Carried 20 | 6 15 15 20 20 20 20 20 20 20 20 Average Carried 17 | 4 11 15 18 19 19 20 19 19 16 19 Final Capacity 20 | 8 15 15 20 20 20 20 20 20 20 20 Final Carried 20 | 5 15 15 20 20 20 20 20 20 20 12 Class Distribution -------------------- 48% | Mutant 26% | Scavenger-Mutant 14% | Skirmisher 8% | Tank Dominant Class ---------------- Mutant | -10/Materials Mutant | -10/Mines Scavenger-Mutant | -9/Materials Scavenger-Mutant | -9/Mines Scavenger-Mutant | -9/Exiles Mutant | -8/Mines Skirmisher | -8/Materials Tank | -7/Factory Mutant | -7/Lower Caves Mutant | -6/Zion Resources | -11 -10 -10 -9 -9 -9 -8 -8 -7 -7 -6 ----------- Run | Yrd Mat Min Mat Min Exi Min Mat Fac Low Zio Matter Collected 1766 | 325 549 4 164 59 . 50 306 . 229 80 Remotely 10 | . . . . . . . . . . 10 Salvage Created 2382 | 126 624 . 254 19 . 18 753 . 512 76 Parts 149 | 9 47 . 16 7 . 2 40 . 16 12 Haulers Intercepted 7 | . 2 . 2 . . . 3 . . . Recyclers Shooed . | . . . . . . . . . . . Parts Field Recycled . | . . . . . . . . . . . Retrieved Matter . | . . . . . . . . . . . Parts Self-Destructed 22 | . . . . . . . . . 17 5 Prevented 1 | . . . . . . . . . 1 . Kills | -11 -10 -10 -9 -9 -9 -8 -8 -7 -7 -6 ------- Run | Yrd Mat Min Mat Min Exi Min Mat Fac Low Zio Combat Hostiles Destroyed 49 | . 12 . 6 3 . 2 18 . 8 . Melee 2 | . . . . . . . . . 2 . Guns 42 | . 12 . 6 . . . 18 . 6 . AOE 5 | . . . . 3 . 2 . . . . Classes Destroyed 14 | 2 6 . 1 . . . 2 . 2 1 Worker 2 | . 1 . . . . 1 . . . . Builder 1 | . . . . . . . 1 . . . Tunneler 3 | 3 . . . . . . . . . . Hauler 7 | . 2 . 2 . . . 3 . . . Recycler 1 | 1 . . . . . . . . . . Minesweeper 1 | . . . . . . . . . 1 . Operator 2 | . 1 . . . . . 1 . . . Watcher 4 | . 3 . . . . . 1 . . . Swarmer 15 | . 3 . 2 3 . 2 4 . 1 . Grunt 24 | . 9 . 3 . . . 9 . 3 . Brawler 3 | . . . 1 . . . . . 2 . Duelist 2 | . . . . . . . . . 2 . Sentry 6 | . . . . . . . 5 . 1 . Zionite 6 | . . . . . . . . . . 6 Best Kill Streak 7 | 3 3 . 5 3 . 3 4 . 7 6 Combat Bots Only 7 | . 3 . 5 3 . 2 4 . 7 . Max Kills in Single Turn 5 | 1 2 . 2 3 . 2 3 . 1 5 Gunslinging 1 | . . . 1 . . . 1 . . . Exploded 3 | . . . . 3 . 1 . . . . Melee 1 | . . . . . . . . . 1 . Uniques/NPCs Destroyed . | . . . . . . . . . . . Combat | -11 -10 -10 -9 -9 -9 -8 -8 -7 -7 -6 -------- Run | Yrd Mat Min Mat Min Exi Min Mat Fac Low Zio Hostile Shots Fired 484 | . 55 . 27 13 . 6 63 . 123 197 Missed 129 | . 15 . 12 2 . 4 15 . 15 66 Hits 355 | . 40 . 15 11 . 2 48 . 108 131 Melee 33 | . . . . . . . . . 16 17 Projectile 322 | . 40 . 15 11 . 2 48 . 92 114 Critical Strikes 16 | . 1 . . . . . 2 . 9 4 Part Disruptions 1 | . . . . . . . . . . 1 Damage Taken 5615 | . 475 . 163 150 . 16 644 . 2206 1961 Core 858 | . 82 . 12 9 . . 46 . 382 327 Absorbed by Shields . | . . . . . . . . . . . Regen/Repaired (Parts) 231 | . 231 . . . . . . . . . Core Remaining (%) 88 | 100 . 67 . . . 94 91 . . . Volleys Fired 160 | 9 48 . 28 4 . 2 46 . 19 4 Largest 3 | 2 2 . 2 2 . 1 3 . 3 2 Hottest 195 | 70 43 . 88 88 . 30 195 . 177 126 Shots Fired 360 | 18 96 . 51 7 . 2 130 . 50 6 Gun 354 | 18 96 . 51 6 . . 130 . 50 3 Cannon 1 | . . . . . . . . . . 1 Launcher 5 | . . . . 1 . 2 . . . 2 Special . | . . . . . . . . . . . Kinetic 203 | 9 96 . 33 3 . . 40 . 20 2 Thermal 152 | 9 . . 18 3 . . 90 . 30 2 Explosive 5 | . . . . 1 . 2 . . . 2 Electromagnetic . | . . . . . . . . . . . Robot Hit Streak 28 | 2 28 . 10 3 . . 25 . 13 9 Robot Miss Streak 5 | 4 4 . 5 4 . . 5 . 2 . Penetration Max . | . . . . . . . . . . . Secondary Targets 7 | . . . 1 . . . 3 . 3 . Max Gunslinging Chain 1 | . . . 1 . . . 1 . 1 . Shots Hit Robots 284 | 9 65 . 44 4 . . 104 . 50 8 Core Hits 207 | 5 27 . 24 6 . 4 114 . 21 6 Critical Kills 1 | . . . . . . . 1 . . . Critical Parts Destroyed 1 | . 1 . . . . . . . . . Critical Strikes 4 | . 1 . . . . . 3 . . . Burn 1 | . . . . . . . 1 . . . Destroy 2 | . 1 . . . . . 1 . . . Sever 1 | . . . . . . . 1 . . . Melee Attacks 27 | . 1 . . . . . 9 . 10 7 Impact 1 | . 1 . . . . . . . . . Slashing 26 | . . . . . . . 9 . 10 7 Piercing . | . . . . . . . . . . . Sneak Attacks 11 | . . . . . . . 2 . 9 . Combat Hostiles . | . . . . . . . . . . . Follow-up Attacks . | . . . . . . . . . . . Damage Inflicted 5828 | 105 966 . 687 194 . 183 1729 . 1385 579 Guns 4148 | 105 966 . 687 44 . . 1564 . 738 44 Cannons 27 | . . . . . . . . . . 27 Explosions 696 | . . . . 143 . 183 . . . 370 Melee 950 | . . . . . . . 165 . 647 138 Ramming 7 | . . . . 7 . . . . . . Kinetic 2146 | 55 966 . 428 13 . . 376 . 280 28 Thermal 2029 | 50 . . 259 31 . . 1188 . 458 43 Explosive 696 | . . . . 143 . 183 . . . 370 Electromagnetic . | . . . . . . . . . . . Impact . | . . . . . . . . . . . Slashing 950 | . . . . . . . 165 . 647 138 Piercing . | . . . . . . . . . . . Highest Corruption 26 | . . . . . . . . . . 26 Average Corruption 6 | . . . . . . . . . . 6 Corruption Purged . | . . . . . . . . . . . Corruption Blocked . | . . . . . . . . . . . Effects 6 | . . . . . . . . . . 6 Message Errors 2 | . . . . . . . . . . 2 Heat Flow Errors 2 | . . . . . . . . . . 2 Data Loss (major) 2 | . . . . . . . . . . 2 Overload Shots . | . . . . . . . . . . . Overflow Damage 47 | . . . . . . 4 . . 33 10 Projectiles . | . . . . . . . . . . . Explosions 13 | . . . . . . 4 . . . 9 Melee 34 | . . . . . . . . . 33 1 Knockbacks . | . . . . . . . . . . . Impact . | . . . . . . . . . . . Kinetic . | . . . . . . . . . . . Secondary . | . . . . . . . . . . . Self-Inflicted Damage 47 | . . . . . . . . . . 47 Shots 2 | . . . . . . . . . . 2 Rammed 1 | . . . . 1 . . . . . . Targets Rammed 1 | . . . . 1 . . . . . . Kicked . | . . . . . . . . . . . Crushed . | . . . . . . . . . . . Highest Temperature 403 | 36 27 . 180 81 . . 297 . 403 274 Average Temperature 98 | 15 11 . 81 33 . . 99 . 203 94 Received Heat Transfer 1389 | . 219 . 45 18 . . 306 . 765 36 Effects 8 | . . . . . . . 3 . 5 . Shutdowns 1 | . . . . . . . . . 1 . Interference 5 | . . . . . . . 3 . 2 . Matter Decay 1 | . . . . . . . . . 1 . Damage (minor) 1 | . . . . . . . . . 1 . Siege Activations . | . . . . . . . . . . . Martial Activations . | . . . . . . . . . . . Shielding Activations . | . . . . . . . . . . . Robots Disrupted . | . . . . . . . . . . . Combat Hostiles . | . . . . . . . . . . . Robots Corrupted . | . . . . . . . . . . . Combat Hostiles . | . . . . . . . . . . . Parts Fried . | . . . . . . . . . . . Impact Corruptions . | . . . . . . . . . . . Robots Melted . | . . . . . . . . . . . Combat Hostiles . | . . . . . . . . . . . Parts Melted 5 | . . . . 1 . . 3 . 1 . Heat Transferred 3289 | 148 . . 320 40 . . 1745 . 962 74 Parts Sabotaged . | . . . . . . . . . . . Parts Stolen . | . . . . . . . . . . . Parts Stripped . | . . . . . . . . . . . Power Chain Reactions . | . . . . . . . . . . . Alert | -11 -10 -10 -9 -9 -9 -8 -8 -7 -7 -6 ------- Run | Yrd Mat Min Mat Min Exi Min Mat Fac Low Zio Maximum Alert Level 1 | . . . 1 . . . . . . . Low Security (%) 99 | 100 100 100 90 100 . 100 100 100 . . Level 1 . | . . . 9 . . . . . . . Level 2 . | . . . . . . . . . . . Level 3 . | . . . . . . . . . . . Level 4 . | . . . . . . . . . . . Level 5 . | . . . . . . . . . . . High Security . | . . . . . . . . . . . Max Security . | . . . . . . . . . . . Peak Influence 216 | 10 187 45 216 83 . 70 140 51 . . Initial 64 | . . 45 . 64 . . 13 51 . . Average 49 | 1 56 3 120 13 . 12 79 7 . . Influence Increases 1933 | 20 518 . 447 127 . 80 560 16 165 . Destroy 0b10 Robot/C 1160 | . 240 . 260 100 . 40 360 . 160 . Destroy 0b10 Robot/NC 115 | 20 35 . 20 . . 5 30 . 5 . Destroy Leader 262 | . 80 . 74 10 . 10 88 . . . Allied During Kill 33 | . . . 21 12 . . . . . . Successful Hack 142 | . 85 . 12 . . . 29 16 . . Select Force Hacks 60 | . 60 . . . . . . . . . Disable Machine 60 | . 15 . 30 . . . 15 . . . Destroy Structure 41 | . 3 . 15 5 . 10 8 . . . Partial Spotted 15 | . . . 15 . . . . . . . Lose Combat Pursuer 45 | . . . . . . 15 30 . . . Influence Decreases 1933 | 20 401 117 280 294 . 46 481 129 165 . Entered New Map 258 | . . 72 . 103 . . 21 62 . . Time Decay 1555 | 20 401 45 250 171 . 46 460 67 95 . Lost Part 80 | . . . 10 . . . . . 70 . Lost Ally 40 | . . . 20 20 . . . . . . Squads Dispatched 12 | . 4 . 2 . . . 5 1 . . Investigation 5 | . 3 . 1 . . . 1 . . . Extermination 1 | . . . . . . . . 1 . . Reinforcement 5 | . 1 . 1 . . . 3 . . . Assault . | . . . . . . . . . . . Garrison 1 | . . . . . . . 1 . . . Intercept . | . . . . . . . . . . . Searches Triggered . | . . . . . . . . . . . Construction Impeded . | . . . . . . . . . . . Haulers Reinforced . | . . . . . . . . . . . Active Scanning Responses . | . . . . . . . . . . . Cargo Convoy Interrupts . | . . . . . . . . . . . Stealth | -11 -10 -10 -9 -9 -9 -8 -8 -7 -7 -6 --------- Run | Yrd Mat Min Mat Min Exi Min Mat Fac Low Zio Distress Signals 2 | . . . 1 . . . 1 . . . Communications Jammed . | . . . . . . . . . . . Distress Signals . | . . . . . . . . . . . Times Spotted 92 | . 17 . 15 5 . 4 27 . 7 17 Peak Tracking Total 15 | . 3 . 3 3 . 3 4 . 7 15 Tactical Retreats 3 | . . . . . . 1 1 . . 1 Traps | -11 -10 -10 -9 -9 -9 -8 -8 -7 -7 -6 ------- Run | Yrd Mat Min Mat Min Exi Min Mat Fac Low Zio Traps Triggered . | . . . . . . . . . . . Indirectly . | . . . . . . . . . . . Trap Hack Attempts . | . . . . . . . . . . . Triggered . | . . . . . . . . . . . Disarmed . | . . . . . . . . . . . Reprogrammed . | . . . . . . . . . . . Reused . | . . . . . . . . . . . Traps Extracted . | . . . . . . . . . . . Installed . | . . . . . . . . . . . Triggered . | . . . . . . . . . . . Most Traps Carried 7 | . . . . . . . . . 7 7 Machines | -11 -10 -10 -9 -9 -9 -8 -8 -7 -7 -6 ---------- Run | Yrd Mat Min Mat Min Exi Min Mat Fac Low Zio Machines Disabled 6 | . 1 . 2 1 . . 1 . . 1 Max in Single Turn 1 | . 1 . . 1 . . 1 . . 1 Machines Repaired . | . . . . . . . . . . . Machines Dismantled . | . . . . . . . . . . . Machines Sabotaged . | . . . . . . . . . . . Overloaded Fab Kills . | . . . . . . . . . . . Hacking | -11 -10 -10 -9 -9 -9 -8 -8 -7 -7 -6 --------- Run | Yrd Mat Min Mat Min Exi Min Mat Fac Low Zio Machines Accessed 24 | . 10 . 4 . 2 . 7 1 . . Terminals 16 | . 7 . 3 . . . 5 1 . . Fabricators . | . . . . . . . . . . . Repair Stations 1 | . 1 . . . . . . . . . Recycling Units 2 | . 2 . . . . . . . . . Scanalyzers 3 | . . . 1 . . . 2 . . . Garrison Access . | . . . . . . . . . . . Total Hacks 104 | . 38 . 14 . 5 . 45 2 . . Successful 67 | . 24 . 8 . 5 . 29 1 . . Failed 37 | . 14 . 6 . . . 16 1 . . Catastrophic 4 | . 1 . . . . . 2 1 . . Database Lockouts . | . . . . . . . . . . . Manual 15 | . 10 . 1 . 1 . 3 . . . Terminals 62 | . 30 . 7 . . . 23 2 . . Fabricators . | . . . . . . . . . . . Repair Stations 3 | . 3 . . . . . . . . . Recycling Units 5 | . 5 . . . . . . . . . Scanalyzers 29 | . . . 7 . . . 22 . . . Garrison Access . | . . . . . . . . . . . Terminal Hacks 31 | . 16 . 1 . 5 . 8 1 . . Record 4 | . . . . . 4 . . . . . Robot Analysis 3 | . 2 . . . . . 1 . . . Prototype ID Bank 6 | . 5 . . . . . 1 . . . Level Access Points 1 | . . . . . . . 1 . . . Branch Access Points 3 | . . . 1 . . . 1 1 . . Emergency Access Points 1 | . 1 . . . . . . . . . Terminal Index 2 | . 1 . . . . . 1 . . . Recycling Unit Index 1 | . 1 . . . . . . . . . Alert Level 1 | . . . . . . . 1 . . . Locate Traps 2 | . 1 . . . . . 1 . . . Hauler Manifests 2 | . 1 . . . . . 1 . . . Registered Components 1 | . 1 . . . . . . . . . Zone Layout 3 | . 3 . . . . . . . . . Proto ID Catalog 1 | . . . . . 1 . . . . . Fabricator Hacks . | . . . . . . . . . . . Repair Station Hacks 2 | . 2 . . . . . . . . . Scan Component 1 | . 1 . . . . . . . . . Repair 1 | . 1 . . . . . . . . . Recycling Unit Hacks 3 | . 3 . . . . . . . . . Report Inventory 2 | . 2 . . . . . . . . . Retrieve Components 1 | . 1 . . . . . . . . . Scanalyzer 26 | . . . 6 . . . 20 . . . Insert Component 13 | . . . 3 . . . 10 . . . Analyze 13 | . . . 3 . . . 10 . . . Garrison Access Hacks . | . . . . . . . . . . . Unauthorized Hacks 5 | . 3 . 1 . . . 1 . . . Terminals 2 | . . . 1 . . . 1 . . . Botnet 2 | . . . 1 . . . 1 . . . Fabricators . | . . . . . . . . . . . Repair Stations 1 | . 1 . . . . . . . . . Patch 1 | . 1 . . . . . . . . . Recycling Units 2 | . 2 . . . . . . . . . Tunnel 2 | . 2 . . . . . . . . . Scanalyzers . | . . . . . . . . . . . Garrison Access . | . . . . . . . . . . . Data Cores Recovered . | . . . . . . . . . . . Used . | . . . . . . . . . . . Hacking Detections 19 | . 8 . 4 . . . 6 1 . . Full Trace Events 2 | . . . 1 . . . 1 . . . Feedback Events . | . . . . . . . . . . . Feedback Blocked . | . . . . . . . . . . . Robot Schematics Acquired 4 | . . . . . . . . . . 4 Robots Built . | . . . . . . . . . . . Authchips . | . . . . . . . . . . . Time . | . . . . . . . . . . . Total Robot Build Rating . | . . . . . . . . . . . Part Schematics Acquired 27 | . . . 3 . . . 10 . . 14 Parts Built . | . . . . . . . . . . . Authchips . | . . . . . . . . . . . Time . | . . . . . . . . . . . Total Part Build Rating . | . . . . . . . . . . . Parts Repaired 1 | . 1 . . . . . . . . . Time 26 | . 26 . . . . . . . . . Parts Recycled . | . . . . . . . . . . . Recycled Matter . | . . . . . . . . . . . Retrieved Matter . | . . . . . . . . . . . Retrieved Components 7 | . 7 . . . . . . . . . Parts Scanalyzed 13 | . . . 3 . . . 10 . . . Part Schematics Acquired 13 | . . . 3 . . . 10 . . . Parts Damaged . | . . . . . . . . . . . Bothacking | -11 -10 -10 -9 -9 -9 -8 -8 -7 -7 -6 ------------ Run | Yrd Mat Min Mat Min Exi Min Mat Fac Low Zio Used RIF Installer . | . . . . . . . . . . . Robots Hacked . | . . . . . . . . . . . Non-combat . | . . . . . . . . . . . Combat . | . . . . . . . . . . . Robot Hacks Applied . | . . . . . . . . . . . Relay Couplers Released . | . . . . . . . . . . . Fabnet Peak Effective % . | . . . . . . . . . . . Robots Rewired 1 | . . . . . . . . . 1 . Allies Hacked . | . . . . . . . . . . . Hacks Repelled . | . . . . . . . . . . . Allies | -11 -10 -10 -9 -9 -9 -8 -8 -7 -7 -6 -------- Run | Yrd Mat Min Mat Min Exi Min Mat Fac Low Zio Total Allies 7 | . . 3 . 3 . . . . 1 . Largest Group 3 | . . 3 3 2 2 . . . 1 . Highest-Rated Group 62 | . . 40 40 62 62 . . . 20 . Highest-Rated Ally 31 | . . 16 16 31 31 . . . 20 . Total Orders . | . . . . . . . . . . . Ally Attacks 27 | . . . 18 9 . . . . . . Total Damage 600 | . . . 475 125 . . . . . . Kills 12 | . . . 10 2 . . . . . . Allies Corrupted . | . . . . . . . . . . . Allies Melted . | . . . . . . . . . . . Intel | -11 -10 -10 -9 -9 -9 -8 -8 -7 -7 -6 ------- Run | Yrd Mat Min Mat Min Exi Min Mat Fac Low Zio Active Infowar (turns) 5105 | 27 1500 649 592 618 758 284 . . . 677 Optics 677 | . . . . . . . . . . 677 Seismic 4428 | 27 1500 649 592 618 758 284 . . . . Robot Analysis Total 3 | . 2 . . . . . 1 . . . Derelict Logs Recovered 8 | . . 1 . 3 . . . . 1 3 Drone Launches . | . . . . . . . . . . . Drone Recoveries . | . . . . . . . . . . . Exploration | -11 -10 -10 -9 -9 -9 -8 -8 -7 -7 -6 ------------- Run | Yrd Mat Min Mat Min Exi Min Mat Fac Low Zio Turns Passed 9117 | 133 1624 649 592 925 758 429 1753 450 550 1254 Spaces Moved 4636 | 67 761 292 284 507 466 232 736 285 271 735 Core 19 | 19 . . . . . . . . . . Treads 4613 | 44 761 292 284 507 466 232 736 285 271 735 Legs . | . . . . . . . . . . . Wheels 4 | 4 . . . . . . . . . . Hover . | . . . . . . . . . . . Flight . | . . . . . . . . . . . Fastest Speed 50 | 50 160 160 160 160 160 155 156 156 156 160 Average Speed 158 | 124 160 160 160 160 160 157 156 156 160 160 Slowest Speed 240 | 160 160 160 160 240 160 160 156 156 240 240 Overloaded Moves . | . . . . . . . . . . . Propulsion Burnouts . | . . . . . . . . . . . Robots Hopped . | . . . . . . . . . . . Potential Cave-ins . | . . . . . . . . . . . Cave-ins Triggered . | . . . . . . . . . . . Exploration Rate (%) 53 | 5 85 66 32 87 91 47 52 7 38 83 Regions Visited 10 Branch Regions 6 Pre-discovered Areas 5 | . 2 . . . 1 . . . . 2 Known Exits Taken 4 | . . . 1 . . 1 1 1 . . Unknown Exits Taken 6 | 1 1 1 . 1 1 . . . 1 . Scrap Searched 10 | . . 2 . 2 . 1 . . 1 4 Spaces Dug 8 | . 1 . . . . . 7 . . . Terrain Destroyed 24 | . 1 . . 5 . 11 7 . . . Melee 8 | . 1 . . . . . 7 . . . Projectile . | . . . . . . . . . . . AOE 16 | . . . . 5 . 11 . . . . Terrain Rammed . | . . . . . . . . . . . Walls Destroyed . | . . . . . . . . . . . Machines Disabled . | . . . . . . . . . . . Actions | -11 -10 -10 -9 -9 -9 -8 -8 -7 -7 -6 --------- Run | Yrd Mat Min Mat Min Exi Min Mat Fac Low Zio Total 6059 | 98 1073 474 376 609 481 296 1231 291 333 797 Wait 1018 | . 217 183 35 91 12 55 402 . 2 21 Move 4626 | 66 760 291 283 506 465 231 735 284 270 735 Hop . | . . . . . . . . . . . Pick Up 76 | 11 23 . 13 1 2 1 7 3 10 5 Fast Attach 15 | 3 . . 2 1 . . 2 . 1 6 Attach 35 | 6 . . 3 1 . . 4 1 10 10 Detach 3 | . . . 1 . . . 2 . . . Swap 39 | 1 10 . 2 2 . 3 13 1 6 1 Drop 54 | 2 14 . 9 2 2 4 11 2 . 8 Fire 160 | 9 48 . 28 4 . 2 46 . 19 4 Melee 27 | . 1 . . . . . 9 . 10 7 Ram . | . . . . . . . . . . . Kick . | . . . . . . . . . . . Crush 1 | . . . . 1 . . . . . . Escape Stasis . | . . . . . . . . . . . Rewire 5 | . . . . . . . . . 5 . Trap . | . . . . . . . . . . . Miscellaneous . | . . . . . . . . . . . Route ------- -11/Scrapyard -10/Materials (discovered 4 exits: *Mat x3 / [*Min]) -10/Mines -9/Materials (discovered 5 exits: Mat / *Min x2 / Sto x2) -9/Mines (discovered 2 exits: *Mat / *Exi) -9/Exiles -8/Mines -8/Materials (discovered 3 exits: *Fac x3) -7/Factory (discovered 2 exits: *Low x2) -7/Lower Caves -6/Zion (discovered 1 exit: Dee) History --------- Turn | Location | Event 11 | -11/Scrapyard | Discovered new exit (range 13) 134 | -11/Scrapyard | Entered Materials 268 | -10/Materials | Discovered new exit (range 13) 307 | -10/Materials | Build established: Mutant 567 | -10/Materials | Discovered new exit (range 8) 626 | -10/Materials | Discovered new exit (range 3) 717 | -10/Materials | Discovered new exit (range 8) 1068 | -10/Materials | Repaired Hcp. Storage Unit 1758 | -10/Materials | Entered Mines 1845 | -10/Mines | Learned location of 1 exit from Materials 1845 | -10/Mines | Assisted by bots powering up and referring to "LRC-V3" 2013 | -10/Mines | Found a hidden stash of uninstalled traps 2387 | -10/Mines | Discovered new exit (range 3) 2407 | -10/Mines | Entered Materials 2407 | -9/Materials | Accompanied by 3 allies 2407 | -9/Materials | Evolved 2 slots: Propulsion x1, Utility x1 2408 | -9/Materials | Identified exit to Materials 2558 | -9/Materials | Identified exit to Mines 2558 | -9/Materials | Identified exit to Storage 2700 | -9/Materials | Build established: Scavenger-Mutant 2999 | -9/Materials | Entered Mines 3240 | -9/Mines | Learned location of 1 exit from Materials 3347 | -9/Mines | Discovered exit to Materials (range 5) 3381 | -9/Mines | Learned Materials machine intel 3729 | -9/Mines | Learned Materials non-interactive machine intel 3734 | -9/Mines | Received a Mining Laser from a helpful Derelict 3825 | -9/Mines | Deemed a non-threat by the Exiles lab entrance 3825 | -9/Mines | Discovered new exit (range 5) 3924 | -9/Mines | Entered Exiles 3924 | -9/Exiles | Accompanied by 2 allies 3954 | -9/Exiles | Led the pair of lost Derelicts to a safe place 3964 | -9/Exiles | Met 8R-AWN 3990 | -9/Exiles | Met EX-HEX 4055 | -9/Exiles | Met EX-BIN 4077 | -9/Exiles | Aligned with FarCom system 4079 | -9/Exiles | Given EX-Vault access code 4116 | -9/Exiles | Opened EX-Vault 4129 | -9/Exiles | Found Longsword +1 4162 | -9/Exiles | Warned to stay clear of 0b10 Research branches 4282 | -9/Exiles | Met EX-DEC 4329 | -9/Exiles | Visited The Gauntlet 4560 | -9/Exiles | Learned location of Zion (-6) 4634 | -9/Exiles | Discovered new exit (range 15) 4682 | -9/Exiles | Left Exiles lab with Longsword +1 4682 | -9/Exiles | Entered Mines 4841 | -8/Mines | Discovered exit to Materials (range 8) 4862 | -8/Mines | Found DCF Scrap (16 items) 4895 | -8/Mines | Found a Scrap Suit stashed away for nefarious purposes 5111 | -8/Mines | Entered Materials 5111 | -8/Materials | Evolved 2 slots: Propulsion x1, Weapon x1 5112 | -8/Materials | Identified exit to Factory 5113 | -8/Materials | Loaded intel: 63 machine locations 5114 | -8/Materials | Loaded intel: 44 non-interactive machine locations 5392 | -8/Materials | Garrison activated, responded to threat 5906 | -8/Materials | Build established: Skirmisher 6864 | -8/Materials | Entered Factory 6864 | -7/Factory | Evolved 2 slots: Utility x2 7058 | -7/Factory | Identified exit to Lower Caves 7180 | -7/Factory | Build established: Tank 7314 | -7/Factory | Entered Lower Caves 7336 | -7/Lower Caves | Attracted the attention of an 0b10 outpost 7398 | -7/Lower Caves | Core integrity fell below 50% 7429 | -7/Lower Caves | Destroyed 7 combat bots 7430 | -7/Lower Caves | Lost 14 parts (1p5n7u1w) 7656 | -7/Lower Caves | Build established: Mutant 7851 | -7/Lower Caves | Learned 12 Factory zone layouts 7856 | -7/Lower Caves | A Derelict revealed a hidden shortcut to a safe place 7864 | -7/Lower Caves | Entered Zion 8018 | -6/Zion | Learned location of Armory (-4) 8060 | -6/Zion | Learned Factory emergency access door positions 8185 | -6/Zion | Found Prototype Processor 8185 | -6/Zion | Identified Spectral Analyzer 8217 | -6/Zion | System corruption cleaned by Quarantine Array 8249 | -6/Zion | Found Prototype Processor 8249 | -6/Zion | Identified Exp. Melee Analysis Suite 8257 | -6/Zion | Found Prototype Processor 8257 | -6/Zion | Identified Exp. Armor Integrity Analyzer 8264 | -6/Zion | Found Prototype Processor 8264 | -6/Zion | Identified Exp. Targeting Computer 8269 | -6/Zion | Found Prototype Processor 8269 | -6/Zion | Identified Exp. Target Analyzer 8272 | -6/Zion | Found Spectral Analyzer 8546 | -6/Zion | Identified exit to Deep Caves 8572 | -6/Zion | Given the Hacking Drone Bay 8572 | -6/Zion | Found Prototype Device 8641 | -6/Zion | Learned Factory trap positions 8901 | -6/Zion | Rebuked by Imprinter 8936 | -6/Zion | Attempted to imprint without authorization 8936 | -6/Zion | Attacked by Zionites 9100 | -6/Zion | System corruption reached 10% 9107 | -6/Zion | Core integrity fell below 20% 9118 | -6/Zion | Destroyed by B7-86B(M) with Barrage Gun Last Messages --------------- 09102_ Destroyed Imp. Medium Treads. 09102_ I4-O1X(z) destroyed. 09102_ RL-1O2(z) destroyed. 09102_ 16-F2U(z) destroyed. 09102_ GV-RZK(z) destroyed. 09103_ YK-B2L(z) destroyed. 09105_ Critical hit (Smash). 09105_ Exp. Armor Integrity Analyzer destroyed. 09105_ Grenade Launcher destroyed. 09105_ System corrupted by crushing effect (+2). 09105_ Knocked back. 09110_ IL-4F7(z) destroyed. 09113_ Lgt. Treads destroyed. EV-WAT(z) bursts out of the Twisted Machinery. 09115_ EV-WAT(z) pulls a Mak. Axe out of the Twisted Machinery. 09115_ Hvy. Ion Cannon severed. 09116_ Acquired Mak. Leg. 09116_ Hcp. Matter Pod destroyed. 09116_ System corrupted by crushing effect (+2). 09116_ Knocked back. Map ----- +----------------------------------------------------+ | ?????????????????????????????????????????????????? | | ?????????????????????????????????????????????????? | | ?????????????????????????????????????????????????? | | ?????????????????????????????????????????????????? | | ??????????????????????????????"????????????????#?? | | ????????????????????????????### ??####?########"#? | | ???????????????????????????##"" ?##"""##"#"##"#""# | | ???????????????????????????#"" ##"""""""""""""""# | | ???????????????????????????#"" "" "" """ """ | | ????????????????????????????#"" "" " | | ?????????????????????????#"##" " | | ?????????????????????????""""" | | ??????????????????????????" "" | | ???????????????????????#"" " """"" | | ?????????????????????#"""" "" """" | | ???????????????????"""""" """""" "" | | ???????????????????? ""#"""" "" | | ?????????????????? """""" | | ??????????????????""""" """"" | | ?????>????????????"""" """""" """ | | ?????????????????###" """"""" """" | | ?????????????????#""" """"" ""##"" | | ?????????????????#"" "" " """""" | | ?????????????????#"" "" | | ?????????????????#"" "" " | | ?????????????????#"" @ / """ "" | | ????????????????#""" Mz%= """"""" #""" """ | | ????????????????""" " !z%%""""" "[ """""""""" | | ????????????????##" """/%=/ """ " """""""""# | | ?????????????????#" """*== " !% " "" ""### | | ????????????????""" "" / " !/" ""#?? | | ????????????????#"" M " "##?? | | ????????????????##" ""#?? | | ?????????????????#""""""" "" z """"##?? | | ?????????????????##""""#"" "" "#"##??? | | ???????????????????####""" """ " """"##???? | | ??????????????????????##""" """ "" """##????? | | ???????????????????????#""""""""""""" """#?????? | | ???????????????????????#"##"""#"""""" ""##?????? | | ??????????????????????????#"######""" """#?????? | | ?????????????????????????????????#""" """#?????? | | ?????????????????????????????????###" """#?????? | | ??????????????????????????????????#"" ""###????? | | ??????????????????????????????????#"" """"#????? | | ????????????##???????????#####????#"" ""###????? | | ??????????###"########??##"""###??##" ""##?????? | | ?????????##""#"#""#""###"#" "#"###?#" """#?????? | | ####?????#""""""""""""""## ##"##" """#?????? | | """""??###" """""""""" ###"""% #""#?????? | | """"""?#""" ""! """#????## | +----------------------------------------------------+ Best States ------------- Heat Dissipation 70 Energy Generation 14 Energy Capacity 275 Matter Stores 448 Matter Capacity 500 Sight Range 24 Terrain Scan Density 10 Armor Coverage 600 Evasion (%) 50 Targeting Accuracy 12 Target Analysis 10 Armor Integrity Analysis 50 Recoil Reduction 4 Item Schematics ----------------- Grenade Launcher | -9/Materials | Scanalyzed Med. Armor Plating | -9/Materials | Scanalyzed Hvy. Hammer | -9/Materials | Scanalyzed Imp. Assault Rifle | -8/Materials | Scanalyzed Adv. Treads | -8/Materials | Scanalyzed Hcp. Matter Pod | -8/Materials | Scanalyzed Lgt. Deuterium Engine | -8/Materials | Scanalyzed Deuterium Engine | -8/Materials | Scanalyzed Cooling System | -8/Materials | Scanalyzed Spread Laser | -8/Materials | Scanalyzed Flak Cannon | -8/Materials | Scanalyzed Lgt. Armor Plating | -8/Materials | Scanalyzed Seismic Detector | -8/Materials | Scanalyzed Flexi-carbon Leg | -6/Zion | Archive Arm. Medium Treads | -6/Zion | Archive System Guard | -6/Zion | Archive Imp. Thermal Shield | -6/Zion | Archive Thermic Laser | -6/Zion | Archive Coil Gun | -6/Zion | Archive Imp. Remote Shield | -6/Zion | Archive Imp. Force Field | -6/Zion | Archive Nuclear Pulse Thruster | -6/Zion | Archive Adv. Field Recycling Unit | -6/Zion | Archive Hvy. Flak Cannon | -6/Zion | Archive Imp. Transmission Jammer | -6/Zion | Archive Adv. Plasma Cannon | -6/Zion | Archive Imp. Reaction Control System | -6/Zion | Archive Robot Schematics ------------------ B-48 Gladiator | -6/Zion | Archive K-01 Serf | -6/Zion | Archive R-10 Processor | -6/Zion | Archive X-82 Rainmaker | -6/Zion | Archive Fabricated ------------ Nothing Repaired ---------- Hcp. Storage Unit | 53% | -10/Materials Alien Tech Used ----------------- None Achievements -------------- None Challenges ------------ None Game ------ Seed GravmagInertialNanovents Manual? 0 Play Time 01:02:34 Cumulative 108.6 hours Start 2025.08.31 @ 11:01:46 End 2025.09.02 @ 14:54:40 Sessions 3 Manual Loads 0 Difficulty Rogue Special Mode None Game No. 127 Rogue 127 Adventurer 0 Explorer 0 Win Type - Total 2 Types 2/0/0/0/0/0/0/0/0/0 Lore% 65 Gallery% 59 Achievement% 54 Wizard Run 0 Options --------- Layout 0 ASCII 0 Keyboard 0 Movement Mouse Keybinds 0 Fullscreen 1 Font 24/Smallcaps Map View 76x50 Zoom Use 0% Tactical HUD 1 Map Filters NONE Filters NONE Steam 1 RUN: 1ddfcec1-8a7e-42d1-82ce-6216bfe2eb63